Cogmind - Beta 16 @@@ ROGUE MODE // 2025.11.26 @ 14:27:54 Player: C0-2MO Result: Destroyed by B-86 Titan with Railgun Performance ------------- Evolutions (6) 3000 Regions Visited (22) 4400 Robots Destroyed (72) 360 Value Destroyed (2093) 2093 Prototype IDs (38) 760 Alien Tech Used (1) 200 Bonus (5679) 5679 TOTAL SCORE: 16492 Bonus ------- Follower Combat Kills 1979 Entered Garrisons 400 Used RIF Installer 1000 Network Hubs Disabled 400 Registered with UFD 300 Met Optimus in HQ 500 Met Zhirov 300 Built Enhanced Grunts 300 Met R17 at Cetus 500 Cogmind --------- Core Integrity 0/1150 Matter 74/300 Energy 73/150 System Corruption 1% Temperature Cool (3) Movement Flying (30) Location -4/Factory Parts ------- > --- POWER (2) -------- Micro Fission Core > --- PROPULSION (8) --- Improved Cesium-ion Thruster Cooled Nuclear Pulse Thruster Impulse Thruster Impulse Thruster > --- UTILITY (7) ------ Enhanced Optical Array Advanced Signal Interpreter Advanced ECM Suite Cloaking Device > --- WEAPON (2) ------- Heavy Phase Cannon Advanced Datajack > --- INVENTORY (5) ---- Authchip [Device] Transdimensional Reconstructor Multitool Peak State ------------ > --- POWER ------------ Light Antimatter Reactor Improved Fusion Compressor > --- PROPULSION ------- Improved Cesium-ion Thruster Field Propulsion Drive Cooled Nuclear Pulse Thruster Cooled Nuclear Pulse Thruster Cooled Nuclear Pulse Thruster Impulse Thruster Impulse Thruster Diametric Drive > --- UTILITY ---------- Advanced Cooling System Medium Storage Unit Advanced Sensor Array Advanced Signal Interpreter Enhanced Scrap Shield Advanced System Shield > --- WEAPON ----------- Advanced Datajack Power Sword > --- INVENTORY -------- Nuclear Pulse Array Advanced Energy Well Structural Scanner Advanced ECM Suite Advanced System Restoration Module Transdimensional Reconstructor Heavy Phase Cannon Remote Datajack Multitool [Rating: 120] Favorites ----------- Power Light Ion Engine Engine Light Ion Engine Power Core Light Fission Core Reactor Light Antimatter Reactor Propulsion Nuclear Pulse Thruster Treads Light Treads Leg Enhanced Flexi-carbon Leg Wheel Wheel Hover Unit Combat Airjet Flight Unit Nuclear Pulse Thruster Utility Advanced Sensor Array Device Advanced Sensor Array Storage Medium Storage Unit Processor Improved Signal Interpreter Hackware Hacking Suite Protection Improved Propulsion Shielding Weapon Power Sword Energy Gun EM Pulse Gun Energy Cannon Subdweller Beam Cannon Ballistic Gun Subdweller Machine Gun Launcher Grenade Launcher Special Weapon Improved Remote Datajack Impact Weapon Mace Slashing Weapon Power Sword Special Melee Weapon Improved Datajack Build | -11 -10 -10 -8 -8 -6 -6 -6 -6 -6 -6 -6 -6 -5 -5 -5 -5 -5 -5 -4 -4 -4 -4 ------- Run | Yrd Mat Sub Rec Scr Fac Was Fac Ext Cet Arc Hub Gar Fac Was Fac Upp Upp Zhi Pro Fac Gar Fac Slots Evolved 12 | . . . . . 8 . . . . . . . 2 . . . . . . 2 . . Power 1 | . . . . . . . . . . . . . 1 . . . . . . . . . Propulsion 6 | . . . . . 4 . . . . . . . 1 . . . . . . 1 . . Utility 5 | . . . . . 4 . . . . . . . . . . . . . . 1 . . Weapon . | . . . . . . . . . . . . . . . . . . . . . . . Parts Attached 139 | 7 17 6 . 9 20 2 2 4 6 1 . 1 18 1 17 4 . 5 . 12 . 7 Power 14 | 1 1 . . 1 1 . . . . . . 1 2 . 4 . . . . 2 . 1 Engine 6 | 1 1 . . . . . . . . . . . 2 . 2 . . . . . . . Core 6 | . . . . 1 1 . . . . . . . . . 2 . . . . 1 . 1 Reactor 2 | . . . . . . . . . . . . 1 . . . . . . . 1 . . Propulsion 44 | 2 4 3 . 2 7 2 . . 1 1 . . 8 . 5 1 . 3 . 3 . 2 Treads 4 | 1 2 . . . . . . . 1 . . . . . . . . . . . . . Leg 1 | . . . . . . . . . . 1 . . . . . . . . . . . . Wheel 6 | 1 2 3 . . . . . . . . . . . . . . . . . . . . Hover 3 | . . . . . 3 . . . . . . . . . . . . . . . . . Flight 30 | . . . . 2 4 2 . . . . . . 8 . 5 1 . 3 . 3 . 2 Utility 52 | 2 3 1 . 4 9 . 1 3 3 . . . 6 1 7 3 . 2 . 5 . 2 Device 22 | 1 . . . 1 3 . 1 1 1 . . . 4 . 4 1 . . . 4 . 1 Storage 5 | 1 1 . . 1 . . . . 1 . . . 1 . . . . . . . . . Processor 7 | . 1 . . . 1 . . . . . . . . 1 1 1 . . . 1 . 1 Hackware 11 | . . . . 2 3 . . 2 . . . . 1 . 2 . . 1 . . . . Protection 7 | . 1 1 . . 2 . . . 1 . . . . . . 1 . 1 . . . . Artifact . | . . . . . . . . . . . . . . . . . . . . . . . Weapon 29 | 2 9 2 . 2 3 . 1 1 2 . . . 2 . 1 . . . . 2 . 2 Energy Gun 4 | 2 1 . . . . . . . 1 . . . . . . . . . . . . . Energy Cannon 3 | . . 1 . . . . . . . . . . . . . . . . . 1 . 1 Ballistic Gun 7 | . 5 1 . . . . . . 1 . . . . . . . . . . . . . Ballistic Cannon . | . . . . . . . . . . . . . . . . . . . . . . . Launcher 1 | . 1 . . . . . . . . . . . . . . . . . . . . . Special Weapon 5 | . 1 . . 1 . . . 1 . . . . 1 . 1 . . . . . . . Impact Weapon 2 | . 1 . . 1 . . . . . . . . . . . . . . . . . . Slashing Weapon 3 | . . . . . 2 . 1 . . . . . . . . . . . . . . . Piercing Weapon . | . . . . . . . . . . . . . . . . . . . . . . . Special Melee Weapon 4 | . . . . . 1 . . . . . . . 1 . . . . . . 1 . 1 Unidentified Prototypes 15 | . . . . . . . . . 6 1 . . 2 . 1 1 . 3 . 1 . . Corrupted Parts 1 | 1 . . . . . . . . . . . . . . . . . . . . . . System Corruption 5 | 5 . . . . . . . . . . . . . . . . . . . . . . Parts Lost 45 | . 8 2 . . . . . . . . 1 8 8 . 4 . . . . 14 . . Power 6 | . 1 . . . . . . . . . . . 3 . . . . . . 2 . . Propulsion 18 | . 3 1 . . . . . . . . 1 5 2 . . . . . . 6 . . Utility 14 | . 1 1 . . . . . . . . . 2 3 . 3 . . . . 4 . . Weapon 7 | . 3 . . . . . . . . . . 1 . . 1 . . . . 2 . . Highest Loss Streak 13 | . 6 1 . . . . . . . . 1 4 4 . 2 . . . . 13 . . To Critical Strikes . | . . . . . . . . . . . . . . . . . . . . . . . Average Backups 6 | 2 10 4 5 10 3 4 4 4 4 5 5 4 6 6 6 8 8 8 9 8 5 4 Power . | . 1 . . . . . . . . . . . . . . . . . . . . . Propulsion . | 1 2 . . . . . . . . . . . 1 . . 2 2 2 2 1 . . Utility 2 | . 1 1 1 2 1 2 2 2 2 3 3 2 2 3 2 3 3 3 3 3 3 1 Weapon 1 | . 3 2 3 4 . . . . . 1 1 1 . 1 1 1 1 1 1 . . . Tool/Special . | . . . . . . . . . . . . . . . . . . . . . . . Unused Backups 26 | . 8 1 . 5 . . . . 9 . . . . . . . . . . . . 3 Power 2 | . 1 . . . . . . . 1 . . . . . . . . . . . . . Propulsion 2 | . 2 . . . . . . . . . . . . . . . . . . . . . Utility 13 | . 1 1 . 2 . . . . 7 . . . . . . . . . . . . 2 Weapon 7 | . 3 . . 3 . . . . 1 . . . . . . . . . . . . . Tool/Special 2 | . 1 . . . . . . . . . . . . . . . . . . . . 1 Average Slot Usage (%) 82 | . 90 84 77 58 85 100 100 100 97 100 100 73 61 59 79 87 88 88 88 75 19 43 Engine 5 | . 9 14 14 13 . . . . . . . . 3 . 1 . . . . . . . Core 3 | . . . . . 6 6 6 6 6 6 6 . . . 8 11 11 8 5 5 . 4 Treads 1 | . 12 . . . . . . . . . . . . . . . . . . . . . Wheel 10 | . 14 27 28 26 . . . . . . . . . . . . . . . . . . Flight 19 | . . . . 1 26 40 40 40 39 40 40 24 19 17 23 35 35 38 41 34 10 14 Device 6 | . 8 . . . 8 13 13 13 12 13 13 15 9 11 9 5 5 5 5 6 3 6 Storage 4 | . 12 . . 12 . . . . . . . . 4 5 5 5 5 5 5 4 . . Processor 3 | . 3 . . . 3 6 6 6 6 6 6 6 5 6 6 5 5 5 5 4 5 9 Hackware 5 | . . . . 1 15 13 13 13 13 13 13 8 4 5 9 5 5 5 5 4 . . Protection 5 | . 1 13 14 1 4 6 6 6 6 6 6 1 . . . 4 5 5 5 4 . . Energy Gun 1 | . 14 . . . . . . . . . . . . . . . . . . . . . Energy Cannon 2 | . . 11 10 . . . . . . . . . . . . . . . . . . 2 Ballistic Gun 3 | . 10 13 10 . . . . . . . . . . . . . . . . . . . Special Weapon 1 | . 1 . . . . . . . . . . . . . 4 5 5 5 5 . . . Slashing Weapon 3 | . . . . . 4 6 6 6 5 6 6 6 4 5 5 5 5 5 5 4 . . Special Melee Weapon 1 | . . . . . 3 6 6 5 4 6 6 4 3 5 . . . . . 3 . 4 Peak Build Rating 120 | 7 9 13 12 22 62 62 62 66 78 71 67 60 76 69 89 95 94 103 98 120 32 66 Average Rating 45 | 4 7 11 10 8 48 59 62 63 66 67 66 45 61 63 78 93 94 96 98 93 28 51 On Entrance 50 | . 7 9 12 8 19 58 62 62 66 67 67 62 16 61 61 82 94 94 98 98 32 20 Avg Prop Armor Cover (%) 7 | 17 13 1 1 7 9 . 6 6 6 17 6 3 7 9 9 . . 1 1 1 . 4 Naked Turns . | . . . . . . . . . . . . . . . . . . . . . . . Heaviest Build 83 | 15 30 33 33 83 15 15 16 15 16 15 15 21 33 17 36 47 47 47 37 53 10 20 Greatest Support 55 | 16 26 30 30 10 35 35 22 22 36 22 22 33 53 30 49 49 49 49 46 55 12 28 Greatest Overweight (x) 8 | . 2 1 3 8 . . . . . 4 . . . . . . . 1 . . . . Average Overweight (x) . | . . . 2 5 . . . . . 1 . . . . . . . . . . . . Largest Inventory Capacity 25 | 8 15 5 5 25 5 5 5 5 5 5 5 5 10 10 10 10 10 10 10 10 5 5 Average Capacity 9 | 7 13 5 5 22 5 5 5 5 5 5 5 5 9 10 10 10 10 10 10 9 5 5 Most Carried 18 | 4 15 5 5 18 5 5 5 5 5 5 5 5 10 6 10 10 9 10 10 10 5 5 Average Carried 7 | 2 10 4 4 11 4 5 4 5 4 5 5 4 7 6 7 9 9 9 10 9 5 3 Final Capacity 10 | 8 5 5 5 5 5 5 5 5 5 5 5 5 10 10 10 10 10 10 10 5 5 5 Final Carried 10 | 4 4 5 5 5 5 5 5 5 5 5 5 5 6 6 10 9 9 10 10 5 5 3 Class Distribution -------------------- 30% | Mutant 17% | Sprinter 15% | Subdweller-Mutant 7% | Commander-Scout 7% | Scientist-Scout 5% | Hacker-Scout 4% | Scientist-Sprinter 3% | Scientist-Assassin Dominant Class ---------------- Mutant | -10/Materials Subdweller-Mutant | -10/Subcaves Subdweller-Mutant | -8/Recycling Mutant | -8/Scraptown Scientist-Scout | -6/Factory Scientist-Scout | -6/Waste Scientist-Sprinter | -6/Factory Commander-Scout | -6/Extension Scientist-Scout | -6/Cetus Scientist-Assassin | -6/Archives Scientist-Scout | -6/Hub_04(d) Hacker-Sprinter | -6/Garrison Mutant | -5/Factory Mutant | -5/Waste Hacker-Scout | -5/Factory Sprinter | -5/Upper Caves Sprinter | -5/Upper Caves Sprinter | -5/Zhirov Sprinter | -4/Proximity Caves Sprinter | -4/Factory Sprinter | -4/Garrison Infiltrator-Sprinter | -4/Factory Resources | -11 -10 -10 -8 -8 -6 -6 -6 -6 -6 -6 -6 -6 -5 -5 -5 -5 -5 -5 -4 -4 -4 -4 ----------- Run | Yrd Mat Sub Rec Scr Fac Was Fac Ext Cet Arc Hub Gar Fac Was Fac Upp Upp Zhi Pro Fac Gar Fac Matter Collected 2724 | 261 639 338 19 10 290 50 20 80 225 30 . 7 165 . 185 192 . 90 . 123 . . Remotely . | . . . . . . . . . . . . . . . . . . . . . . . Salvage Created 3020 | 107 881 481 112 . 395 . 114 336 . . 24 73 158 . 175 . 15 104 . 45 . . Parts 178 | 6 59 27 7 . 21 . 6 11 . . 2 7 8 . 15 . . . . 9 . . Haulers Intercepted 4 | . 2 . . . 1 . 1 . . . . . . . . . . . . . . . Recyclers Shooed . | . . . . . . . . . . . . . . . . . . . . . . . Parts Field Recycled . | . . . . . . . . . . . . . . . . . . . . . . . Retrieved Matter . | . . . . . . . . . . . . . . . . . . . . . . . Parts Self-Destructed 16 | . . 13 . . . . . . . . . . . . . 3 . . . . . . Prevented . | . . . . . . . . . . . . . . . . . . . . . . . Parts Restored . | . . . . . . . . . . . . . . . . . . . . . . . Kills | -11 -10 -10 -8 -8 -6 -6 -6 -6 -6 -6 -6 -6 -5 -5 -5 -5 -5 -5 -4 -4 -4 -4 ------- Run | Yrd Mat Sub Rec Scr Fac Was Fac Ext Cet Arc Hub Gar Fac Was Fac Upp Upp Zhi Pro Fac Gar Fac Combat Hostiles Destroyed 41 | . 21 14 2 . . . . 2 . . . 2 . . . . . . . . . . Melee 4 | . . . . . . . . 2 . . . 2 . . . . . . . . . . Guns 21 | . 15 5 1 . . . . . . . . . . . . . . . . . . . Cannons 6 | . . 5 1 . . . . . . . . . . . . . . . . . . . AOE 8 | . 5 3 . . . . . . . . . . . . . . . . . . . . Classes Destroyed 16 | 2 8 3 . . 1 . . . . . . 2 . . . . . . . . . . Worker 2 | . 2 . . . . . . . . . . . . . . . . . . . . . Builder 9 | . . . . . 4 . . . . . . . 2 . 2 . . . . 1 . . Tunneler 1 | 1 . . . . . . . . . . . . . . . . . . . . . . Hauler 4 | . 2 . . . 1 . 1 . . . . . . . . . . . . . . . Recycler 4 | 1 . . . . 1 . . 1 . . . . 1 . . . . . . . . . Mechanic 4 | . 1 . . . . . . 1 . . . . . . 2 . . . . . . . Operator 5 | . 1 . . . 1 . 1 . . . 1 . . . . . . . . 1 . . Drone 1 | . . . . . . . . . . . . 1 . . . . . . . . . . Turret 2 | . . 2 . . . . . . . . . . . . . . . . . . . . Watcher 1 | . 1 . . . . . . . . . . . . . . . . . . . . . Swarmer 15 | . 9 6 . . . . . . . . . . . . . . . . . . . . Grunt 10 | . 9 . . . . . . 1 . . . . . . . . . . . . . . Sentry 4 | . . 1 2 . . . . 1 . . . . . . . . . . . . . . Hunter 1 | . . . . . . . . . . . . 1 . . . . . . . . . . Artisan 1 | . . 1 . . . . . . . . . . . . . . . . . . . . Subdweller 10 | . 3 7 . . . . . . . . . . . . . . . . . . . . Best Kill Streak 5 | 2 5 3 1 . 2 . 2 1 . . 1 2 2 . 1 . . . . 2 . . Combat Bots Only 4 | . 4 3 1 . . . . 1 . . . 2 . . . . . . . . . . Max Kills in Single Turn 3 | 1 2 3 1 . 1 . 1 1 . . 1 1 1 . 1 . . . . 1 . . Gunslinging 1 | . 1 . . . . . . . . . . . . . . . . . . . . . Exploded 3 | . 1 3 . . . . . . . . . . . . . . . . . . . . Melee 1 | . . . . . . . . 1 . . . 1 . . . . . . . . . . Uniques/NPCs Destroyed . | . . . . . . . . . . . . . . . . . . . . . . . Combat | -11 -10 -10 -8 -8 -6 -6 -6 -6 -6 -6 -6 -6 -5 -5 -5 -5 -5 -5 -4 -4 -4 -4 -------- Run | Yrd Mat Sub Rec Scr Fac Was Fac Ext Cet Arc Hub Gar Fac Was Fac Upp Upp Zhi Pro Fac Gar Fac Hostile Shots Fired 718 | . 99 75 6 . 44 . . 41 4 . 2 54 97 . 57 29 5 . 15 152 16 22 Missed 302 | . 22 25 1 . 25 . . 23 2 . . 29 49 . 22 16 4 . 10 55 7 12 Hits 416 | . 77 50 5 . 19 . . 18 2 . 2 25 48 . 35 13 1 . 5 97 9 10 Projectile 416 | . 77 50 5 . 19 . . 18 2 . 2 25 48 . 35 13 1 . 5 97 9 10 Critical Strikes 26 | . 1 1 . . . . . . 2 . . 1 2 . 2 . . . . 16 1 . Damage Taken 7294 | . 952 718 76 . 266 . . 143 59 . 99 346 1018 . 634 246 12 . 100 2272 186 167 Core 2072 | . 180 36 18 . 59 . . 35 45 . 54 85 220 . 147 . . . 41 990 85 77 Absorbed by Shields 155 | . . . . . . . . 69 58 . . 28 . . . . . . . . . . Redirected to Shielding 149 | . . . . . 49 . . 37 9 . 29 25 . . . . . . . . . . Regen/Repaired (Parts) 349 | . 46 . . 53 . 57 . . . . . . 58 . 135 . . . . . . . Core Remaining (%) 58 | 100 . . . 6 . . . . . . . 67 . . . . . . 59 . . . Volleys Fired 178 | 4 112 40 3 . . . . 1 2 . . . . . 12 . . . . 1 . 3 Largest 2 | 2 2 2 2 . . . . 1 1 . . . . . 1 . . . . 1 . 1 Hottest 240 | 80 100 110 110 . . . . . 240 . . . . . 7 . . . . 90 . 90 Shots Fired 276 | 8 172 71 6 . . . . 1 2 . . . . . 12 . . . . 1 . 3 Gun 202 | 8 158 32 3 . . . . . 1 . . . . . . . . . . . . . Cannon 43 | . . 36 3 . . . . . . . . . . . . . . . . 1 . 3 Launcher 7 | . 4 3 . . . . . . . . . . . . . . . . . . . . Special 24 | . 10 . . . . . . 1 1 . . . . . 12 . . . . . . . Kinetic 117 | . 82 32 3 . . . . . . . . . . . . . . . . . . . Thermal 54 | . 10 36 3 . . . . . 1 . . . . . . . . . . 1 . 3 Explosive 7 | . 4 3 . . . . . . . . . . . . . . . . . . . . Electromagnetic 84 | 8 76 . . . . . . . . . . . . . . . . . . . . . Robot Hit Streak 14 | 3 14 8 2 . . . . 3 4 . . . . . 5 . . . . 5 . . Robot Miss Streak 3 | 1 3 2 2 . . . . . . . . . . . 2 . . . . . . . Penetration Max . | . . . . . . . . . . . . . . . . . . . . . . . Secondary Targets 2 | . 2 . . . . . . . . . . . . . . . . . . . . . Max Gunslinging Chain 1 | . 1 . . . . . . . . . . . . . . . . . . . . . Shots Hit Robots 255 | 6 109 36 3 . 15 . 6 36 1 4 2 5 8 . 15 . 1 2 . 5 . 1 Core Hits 98 | 3 42 20 3 . 8 . 2 6 . . 1 3 1 . 4 . 1 2 . 2 . . Critical Kills 2 | . . 1 . . 1 . . . . . . . . . . . . . . . . . Critical Parts Destroyed . | . . . . . . . . . . . . . . . . . . . . . . . Critical Strikes 7 | . 2 1 . . 1 . . 1 . . 1 1 . . . . . . . . . . Meltdown 1 | . . 1 . . . . . . . . . . . . . . . . . . . . Destroy 1 | . 1 . . . . . . . . . . . . . . . . . . . . . Corrupt 1 | . 1 . . . . . . . . . . . . . . . . . . . . . Smash 1 | . . . . . 1 . . . . . . . . . . . . . . . . . Sever 3 | . . . . . . . . 1 . . 1 1 . . . . . . . . . . Melee Attacks 276 | . 1 10 . . 45 . 20 63 . 4 6 26 24 . 35 . 4 2 8 27 . 1 Impact 15 | . 1 10 . . 4 . . . . . . . . . . . . . . . . . Slashing 219 | . . . . . 35 . 15 42 . . 5 26 21 . 35 . 4 2 8 26 . . Piercing . | . . . . . . . . . . . . . . . . . . . . . . . Sneak Attacks 52 | . 1 . . . 8 . 4 21 . 4 . 1 6 . 4 . . . . 2 . 1 Combat Hostiles 1 | . . . . . . . . . . . . 1 . . . . . . . . . . Follow-up Attacks . | . . . . . . . . . . . . . . . . . . . . . . . Damage Inflicted 6944 | 79 1501 1025 67 . 779 . 178 806 . . 111 237 493 . 547 . 95 170 . 856 . . Guns 1686 | 79 1176 394 37 . . . . . . . . . . . . . . . . . . . Cannons 497 | . . 432 30 . . . . . . . . . . . . . . . . 35 . . Explosions 1035 | . 271 199 . . . . . . . . . . . . . . . . . 565 . . Melee 3726 | . 54 . . . 779 . 178 806 . . 111 237 493 . 547 . 95 170 . 256 . . Ramming . | . . . . . . . . . . . . . . . . . . . . . . . Kinetic 917 | . 486 394 37 . . . . . . . . . . . . . . . . . . . Thermal 1084 | . 22 432 30 . . . . . . . . . . . . . . . . 600 . . Explosive 448 | . 249 199 . . . . . . . . . . . . . . . . . . . . Electromagnetic 769 | 79 690 . . . . . . . . . . . . . . . . . . . . . Impact 253 | . 54 . . . 199 . . . . . . . . . . . . . . . . . Slashing 3473 | . . . . . 580 . 178 806 . . 111 237 493 . 547 . 95 170 . 256 . . Piercing . | . . . . . . . . . . . . . . . . . . . . . . . Highest Corruption 8 | 5 5 5 5 . . . . . . . 2 2 . 8 8 3 . . . 1 1 1 Average Corruption 4 | 5 5 5 5 . . . . . . . 1 2 . 8 6 2 . . . 1 1 1 Corruption Purged 11 | . . . . . . . . . . . . . . . 8 3 . . . . . . Corruption Blocked 1 | . . . . . . . . . . . . . . 1 . . . . . . . . Effects 97 | . 30 37 14 . . . . . . . . 3 . . 8 1 . . . 1 2 1 Message Errors 20 | . 5 7 2 . . . . . . . . . . . 2 1 . . . 1 1 1 Matter Fused 29 | . 10 12 2 . . . . . . . . 1 . . 3 . . . . . 1 . Heat Flow Errors 6 | . 1 5 . . . . . . . . . . . . . . . . . . . . Energy Discharges 12 | . 2 6 3 . . . . . . . . 1 . . . . . . . . . . Parts Rejected 2 | . 2 . . . . . . . . . . . . . . . . . . . . . Parts Fused 1 | . 1 . . . . . . . . . . . . . . . . . . . . . Data Loss (minor) 13 | . 5 3 1 . . . . . . . . 1 . . 3 . . . . . . . Data Loss (major) 4 | . 2 1 1 . . . . . . . . . . . . . . . . . . . Misfires 4 | . 1 2 1 . . . . . . . . . . . . . . . . . . . Alerts 4 | . . 1 3 . . . . . . . . . . . . . . . . . . . Weapon Failures 2 | . 1 . 1 . . . . . . . . . . . . . . . . . . . Overload Shots 1 | . . . . . . . . . 1 . . . . . . . . . . . . . Overflow Damage 587 | . 19 . . . 53 . . 66 . . . . 137 . 129 . . . . 183 . . Projectiles 32 | . . . . . . . . . . . . . . . . . . . . 32 . . Explosions 156 | . 5 . . . . . . . . . . . . . . . . . . 151 . . Melee 399 | . 14 . . . 53 . . 66 . . . . 137 . 129 . . . . . . . Knockbacks 1 | . 1 . . . . . . . . . . . . . . . . . . . . . Impact 1 | . 1 . . . . . . . . . . . . . . . . . . . . . Kinetic . | . . . . . . . . . . . . . . . . . . . . . . . Secondary . | . . . . . . . . . . . . . . . . . . . . . . . Self-Inflicted Damage 438 | . 31 13 . . . . . . . . . . . . . . . . . 394 . . Shots 8 | . 1 2 . . . . . . . . . . . . . . . . . 5 . . Rammed 1 | . . . . . . . . . . . 1 . . . . . . . . . . . Targets Rammed 1 | . . . . . . . . . . . 1 . . . . . . . . . . . Kicked . | . . . . . . . . . . . . . . . . . . . . . . . Crushed . | . . . . . . . . . . . . . . . . . . . . . . . Highest Temperature 312 | 74 269 248 105 . 60 206 . 6 312 . . 29 21 . 138 312 98 68 86 238 . 40 Average Temperature 59 | 42 63 58 45 . 18 74 . 4 111 . . 12 13 . 44 96 36 24 37 60 . 17 Received Heat Transfer 1373 | . 411 204 27 . 69 . . 36 . . . 39 129 . 171 18 . . . 236 21 12 Effects 2 | . . . . . . . . . 2 . . . . . . . . . . . . . Energy Bleed 1 | . . . . . . . . . 1 . . . . . . . . . . . . . Matter Decay 1 | . . . . . . . . . 1 . . . . . . . . . . . . . Siege Activations . | . . . . . . . . . . . . . . . . . . . . . . . Martial Activations . | . . . . . . . . . . . . . . . . . . . . . . . Shielding Activations . | . . . . . . . . . . . . . . . . . . . . . . . Robots Disrupted . | . . . . . . . . . . . . . . . . . . . . . . . Combat Hostiles . | . . . . . . . . . . . . . . . . . . . . . . . Robots Corrupted 1 | . 1 . . . . . . . . . . . . . . . . . . . . . Combat Hostiles 1 | . 1 . . . . . . . . . . . . . . . . . . . . . Parts Fried 4 | 1 3 . . . . . . . . . . . . . . . . . . . . . Impact Corruptions 1 | . 1 . . . . . . . . . . . . . . . . . . . . . Robots Melted 1 | . . 1 . . . . . . . . . . . . . . . . . . . . Combat Hostiles 1 | . . 1 . . . . . . . . . . . . . . . . . . . . Parts Melted 2 | . . 1 1 . . . . . . . . . . . . . . . . . . . Heat Transferred 798 | . 50 592 37 . . . . . . . . . . . . . . . . 119 . . Parts Sabotaged . | . . . . . . . . . . . . . . . . . . . . . . . Parts Stolen . | . . . . . . . . . . . . . . . . . . . . . . . Parts Stripped . | . . . . . . . . . . . . . . . . . . . . . . . Power Chain Reactions 1 | . 1 . . . . . . . . . . . . . . . . . . . . . Alert | -11 -10 -10 -8 -8 -6 -6 -6 -6 -6 -6 -6 -6 -5 -5 -5 -5 -5 -5 -4 -4 -4 -4 ------- Run | Yrd Mat Sub Rec Scr Fac Was Fac Ext Cet Arc Hub Gar Fac Was Fac Upp Upp Zhi Pro Fac Gar Fac Maximum Alert Level 3 | . 1 . . . 2 . 2 3 2 1 . . 1 . . . . . . 1 1 1 Low Security (%) 64 | 100 79 . 100 . 70 100 21 12 . 59 100 100 96 100 100 . . . . 76 . 82 Level 1 27 | . 20 . . . 22 . 68 58 62 40 . . 3 . . . . . . 23 100 17 Level 2 7 | . . . . . 7 . 10 28 37 . . . . . . . . . . . . . Level 3 . | . . . . . . . . . . . . . . . . . . . . . . . Level 4 . | . . . . . . . . . . . . . . . . . . . . . . . Level 5 . | . . . . . . . . . . . . . . . . . . . . . . . High Security . | . . . . . . . . . . . . . . . . . . . . . . . Max Security . | . . . . . . . . . . . . . . . . . . . . . . . Peak Influence 704 | 10 240 . 76 . 405 153 429 704 476 292 110 165 241 24 175 . . . . 322 236 238 Initial 376 | . . . 46 . . 138 58 136 376 161 17 42 81 24 9 . . . . 34 211 123 Average 177 | 1 155 . 30 . 144 124 303 369 383 168 37 94 92 19 68 . . . . 132 211 152 Influence Increases 6515 | 10 629 340 194 . 670 55 671 1060 350 191 153 193 383 . 608 135 . . 75 578 45 175 Destroy 0b10 Robot/C 1600 | . 360 180 40 . . . 280 440 160 80 40 20 . . . . . . . . . . Destroy 0b10 Robot/NC 200 | 10 35 . . . 40 . 20 25 10 . 5 5 15 . 25 . . . . 10 . . Destroy Leader 216 | . 76 10 . . 4 . 52 52 . . 10 10 . . 2 . . . . . . . Allied During Kill 629 | . . . . . . . 24 370 144 80 11 . . . . . . . . . . . Trap Triggered on 0b10 30 | . . . . . . . . 30 . . . . . . . . . . . . . . Successful Hack 662 | . 17 . 32 . 74 . 79 54 . . 33 10 74 . 198 . . . . 55 . 36 Select Force Hacks 240 | . . . 120 . . . . . . . 50 . . . 50 . . . . 20 . . Disable Machine 375 | . 15 . . . 15 . 105 . 15 30 . . 30 . 45 . . . . 120 . . Anti-Garrison Action 50 | . . . . . . . . . . . . 50 . . . . . . . . . . Destroy Structure 443 | . 36 . 2 . 27 40 81 29 21 1 4 38 24 . 48 . . . . 88 . 4 Partial Spotted 300 | . . . . . 45 15 30 30 . . . 30 30 . 30 . . . . 75 . 15 Lose Combat Pursuer 1770 | . 90 150 . . 465 . . 30 . . . 30 210 . 210 135 . . 75 210 45 120 Influence Decreases 6277 | 10 516 356 291 . 273 369 475 665 620 545 143 98 468 56 474 231 51 1 20 331 111 173 Entered New Map 1543 | . . 55 51 . . 259 25 143 298 243 33 18 74 46 5 56 11 1 . 21 91 113 Time Decay 3395 | 10 436 291 240 . 253 90 270 362 222 262 20 . 214 10 279 146 40 . 20 170 . 60 Search Patrol Dispatched 100 | . . . . . . . . . . . . . 100 . . . . . . . . . Lost Part 440 | . 80 10 . . . . . . . . 10 80 80 . 40 . . . . 140 . . Lost Ally 649 | . . . . . 20 20 180 160 100 40 80 . . . . 29 . . . . 20 . Purge Threat 150 | . . . . . . . . . . . . . . . 150 . . . . . . . Squads Dispatched 68 | . 5 . . . 13 . 8 3 . . 5 . 7 . 13 . . . . 9 . 5 Investigation 44 | . 4 . . . 10 . 5 1 . . 3 . 4 . 9 . . . . 6 . 2 Extermination 9 | . . . . . 2 . 1 . . . . . 1 . 2 . . . . 2 . 1 Reinforcement 14 | . 1 . . . 1 . 2 1 . . 2 . 2 . 2 . . . . 1 . 2 Assault 1 | . . . . . . . . 1 . . . . . . . . . . . . . . Garrison . | . . . . . . . . . . . . . . . . . . . . . . . Intercept . | . . . . . . . . . . . . . . . . . . . . . . . Searches Triggered 1 | . . . . . . . . . . . . . 1 . . . . . . . . . Unchained Authorized 2 | . . . . . . . . . . . . . . . 1 . . . . 1 . . Construction Impeded 3 | . . . . . . . 1 1 . . 1 . . . . . . . . . . . Haulers Reinforced 3 | . . . . . . . 1 . . . . . 1 . . . . . . 1 . . Active Scanning Responses . | . . . . . . . . . . . . . . . . . . . . . . . Cargo Convoy Interrupts . | . . . . . . . . . . . . . . . . . . . . . . . Stealth | -11 -10 -10 -8 -8 -6 -6 -6 -6 -6 -6 -6 -6 -5 -5 -5 -5 -5 -5 -4 -4 -4 -4 --------- Run | Yrd Mat Sub Rec Scr Fac Was Fac Ext Cet Arc Hub Gar Fac Was Fac Upp Upp Zhi Pro Fac Gar Fac Distress Signals 16 | . 3 . . . 1 . . 1 2 . 1 . 3 . 1 . . . . 4 . . Communications Jammed . | . . . . . . . . . . . . . . . . . . . . . . . Distress Signals . | . . . . . . . . . . . . . . . . . . . . . . . Times Spotted 391 | . 33 22 2 . 39 4 4 28 9 2 14 13 62 6 47 19 7 . 4 49 10 17 Peak Tracking Total 17 | . 4 5 1 . 8 2 1 8 5 1 13 7 14 6 17 13 7 . 7 14 9 8 Tactical Retreats 67 | . 4 5 . . 10 1 1 2 . . . 4 12 . 9 5 . . 1 8 2 3 ECM-based Alert Blocks 89 | . . . . . . . 1 . . . . 4 39 . 16 . . . . 25 . 4 Traps | -11 -10 -10 -8 -8 -6 -6 -6 -6 -6 -6 -6 -6 -5 -5 -5 -5 -5 -5 -4 -4 -4 -4 ------- Run | Yrd Mat Sub Rec Scr Fac Was Fac Ext Cet Arc Hub Gar Fac Was Fac Upp Upp Zhi Pro Fac Gar Fac Traps Triggered 20 | . 3 2 . . 3 . 1 . . . . 5 2 . . . . . . 2 1 1 Indirectly . | . . . . . . . . . . . . . . . . . . . . . . . Trap Hack Attempts 68 | . . . . . . . . 57 . . . . . . . . . . . 11 . . Triggered . | . . . . . . . . . . . . . . . . . . . . . . . Disarmed 1 | . . . . . . . . . . . . . . . . . . . . 1 . . Reprogrammed 9 | . . . . . . . . 9 . . . . . . . . . . . . . . Reused 3 | . . . . . . . . 3 . . . . . . . . . . . . . . Traps Extracted . | . . . . . . . . . . . . . . . . . . . . . . . Installed . | . . . . . . . . . . . . . . . . . . . . . . . Triggered 3 | . . . . . . . . 3 . . . . . . . . . . . . . . Machines | -11 -10 -10 -8 -8 -6 -6 -6 -6 -6 -6 -6 -6 -5 -5 -5 -5 -5 -5 -4 -4 -4 -4 ---------- Run | Yrd Mat Sub Rec Scr Fac Was Fac Ext Cet Arc Hub Gar Fac Was Fac Upp Upp Zhi Pro Fac Gar Fac Machines Disabled 30 | . 1 1 . . 1 . 7 1 1 2 . 2 2 . 3 . 1 . . 8 . . Max in Single Turn 7 | . 1 1 . . 1 . . . 1 . . 1 1 . 1 . 1 . . 7 . . Garrison Access 9 | . . . . . 2 . 1 . . . . . 2 . 3 . . . . . . 1 Garrison Relay 1 | . . . . . . . . . . . . 1 . . . . . . . . . . Network Hub 2 | . . . . . . . . . . . 2 . . . . . . . . . . . Machines Repaired . | . . . . . . . . . . . . . . . . . . . . . . . Machines Dismantled . | . . . . . . . . . . . . . . . . . . . . . . . Machines Sabotaged 1 | . . . . . . . . . . . 1 . . . . . . . . . . . Overloaded Fab Kills 1 | . . . . . . . . . . . . . . . 1 . . . . . . . Hacking | -11 -10 -10 -8 -8 -6 -6 -6 -6 -6 -6 -6 -6 -5 -5 -5 -5 -5 -5 -4 -4 -4 -4 --------- Run | Yrd Mat Sub Rec Scr Fac Was Fac Ext Cet Arc Hub Gar Fac Was Fac Upp Upp Zhi Pro Fac Gar Fac Machines Accessed 143 | . 8 1 10 3 29 . 12 13 1 . 5 2 13 . 22 2 2 4 . 11 . 5 Terminals 74 | . 7 . 6 . 15 . 6 12 1 . 4 2 4 . 10 . 1 . . 4 . 2 Fabricators 7 | . . . . . 2 . . . . . . . . . 2 . . . . 3 . . Repair Stations 7 | . 1 . . . 1 . . . . . . . 2 . 3 . . . . . . . Recycling Units 26 | . . . 4 . 7 . 3 1 . . . . 3 . 4 . . . . 2 . 2 Scanalyzers 7 | . . . . . 2 . 2 . . . . . 2 . . . . . . 1 . . Garrison Access 11 | . . . . . 2 . 1 . . . 1 . 2 . 3 . . . . 1 . 1 Total Hacks 459 | . 22 5 26 15 76 . 29 29 1 . 17 7 51 . 74 4 9 17 . 60 . 17 Successful 275 | . 15 5 13 15 48 . 17 18 . . 10 2 33 . 37 4 9 17 . 24 . 8 Failed 182 | . 6 . 13 . 27 . 12 11 1 . 7 5 18 . 37 . . . . 36 . 9 Catastrophic 32 | . . . 3 . 3 . . 2 1 . . 3 1 . 6 . . . . 10 . 3 Database Lockouts 2 | . 1 . . . 1 . . . . . . . . . . . . . . . . . Manual 237 | . 19 . 21 . 40 . 14 16 1 . 10 4 20 . 50 . . . . 26 . 16 Terminals 282 | . 19 . 22 . 42 . 16 27 1 . 15 7 28 . 45 . 8 . . 38 . 14 Fabricators 20 | . . . . . 6 . . . . . . . . . 6 . . . . 8 . . Repair Stations 21 | . 3 . . . 2 . . . . . . . 4 . 12 . . . . . . . Recycling Units 35 | . . . 4 . 9 . 5 2 . . . . 3 . 8 . . . . 2 . 2 Scanalyzers 42 | . . . . . 12 . 6 . . . . . 14 . . . . . . 10 . . Garrison Access 17 | . . . . . 5 . 2 . . . 2 . 2 . 3 . . . . 2 . 1 Terminal Hacks 99 | . 3 5 2 15 7 . 3 10 . . 3 2 7 . 7 4 9 17 . 4 . 1 Record 36 | . . 5 . 15 . . . . . . . . . . . 3 8 5 . . . . Part Schematic 8 | . . . . . 2 . . . . . . . 1 . 1 . . 4 . . . . Robot Schematic 1 | . . . . . . . . 1 . . . . . . . . . . . . . . Robot Analysis 8 | . 3 . . . . . 1 . . . . . . . . . . 4 . . . . Prototype ID Bank 11 | . . . 1 . 3 . . . . . . . 2 . 1 . . 4 . . . . Open Door 9 | . . . . . . . . 7 . . . . . . . 1 1 . . . . . Level Access Points 1 | . . . . . . . . . . . . . . . . . . . . . . 1 Branch Access Points 1 | . . . . . . . 1 . . . . . . . . . . . . . . . Emergency Access Points 1 | . . . . . . . . . . . . 1 . . . . . . . . . . Machine Index 1 | . . . . . . . . . . . . . 1 . . . . . . . . . Terminal Index 3 | . . . . . 1 . . . . . . . . . 1 . . . . 1 . . Unreport Threat 1 | . . . . . . . . . . . . . . . 1 . . . . . . . Locate Traps 4 | . . . . . 1 . 1 . . . . . 1 . . . . . . 1 . . Reprogram Traps 1 | . . . . . . . . . . . . . . . . . . . . 1 . . Recall Extermination 1 | . . . . . . . . . . . . . . . 1 . . . . . . . Recall Reinforcements 1 | . . . . . . . . 1 . . . . . . . . . . . . . . Hauler Manifests 1 | . . . . . . . . . . . . . 1 . . . . . . . . . Registered Components 1 | . . . . . . . . . . . . . . . 1 . . . . . . . Registered Prototypes 2 | . . . . . . . . . . . 1 . 1 . . . . . . . . . Zone Layout 6 | . . . 1 . . . . 1 . . 2 . . . 1 . . . . 1 . . Garrison Registry 1 | . . . . . . . . . . . . 1 . . . . . . . . . . Fabricator Hacks 9 | . . . . . 3 . . . . . . . . . 3 . . . . 3 . . Network Status 2 | . . . . . 1 . . . . . . . . . 1 . . . . . . . Load Schematic 5 | . . . . . 2 . . . . . . . . . 1 . . . . 2 . . Build 2 | . . . . . . . . . . . . . . . 1 . . . . 1 . . Repair Station Hacks 6 | . 2 . . . 2 . . . . . . . . . 2 . . . . . . . Scan Component 3 | . 1 . . . 1 . . . . . . . . . 1 . . . . . . . Repair 3 | . 1 . . . 1 . . . . . . . . . 1 . . . . . . . Recycling Unit Hacks . | . . . . . . . . . . . . . . . . . . . . . . . Scanalyzer 34 | . . . . . 12 . 4 . . . . . 13 . . . . . . 5 . . Insert Component 9 | . . . . . 4 . 1 . . . . . 3 . . . . . . 1 . . Analyze 10 | . . . . . 4 . 1 . . . . . 5 . . . . . . . . . Retrieve Study 15 | . . . . . 4 . 2 . . . . . 5 . . . . . . 4 . . Garrison Access Hacks 11 | . . . . . 2 . 1 . . . 1 . 2 . 3 . . . . 1 . 1 Unlock Access 2 | . . . . . . . . . . . 1 . . . . . . . . 1 . . Seal Access 9 | . . . . . 2 . 1 . . . . . 2 . 3 . . . . . . 1 Unauthorized Hacks 116 | . 10 . 11 . 22 . 9 8 . . 6 . 11 . 22 . . . . 11 . 6 Terminals 79 | . 9 . 7 . 14 . 6 7 . . 5 . 7 . 14 . . . . 6 . 4 Track 4 | . . . . . . . . . . . 1 . . . 3 . . . . . . . Assimilate 5 | . . . . . 3 . . . . . . . . . 2 . . . . . . . Botnet 25 | . 3 . 2 . 5 . 1 2 . . 1 . 2 . 4 . . . . 3 . 2 Disrupt 3 | . . . . . . . . 1 . . 1 . 1 . . . . . . . . . Operators 2 | . 1 . . . . . . . . . . . 1 . . . . . . . . . Skim 39 | . 5 . 5 . 6 . 5 4 . . 1 . 3 . 5 . . . . 3 . 2 Sabotage 1 | . . . . . . . . . . . 1 . . . . . . . . . . . Fabricators 6 | . . . . . 1 . . . . . . . . . 2 . . . . 3 . . Prioritize 2 | . . . . . . . . . . . . . . . 1 . . . . 1 . . Overload 1 | . . . . . . . . . . . . . . . 1 . . . . . . . Download 1 | . . . . . . . . . . . . . . . . . . . . 1 . . Recompile 2 | . . . . . 1 . . . . . . . . . . . . . . 1 . . Repair Stations 4 | . 1 . . . . . . . . . . . 1 . 2 . . . . . . . Patch 4 | . 1 . . . . . . . . . . . 1 . 2 . . . . . . . Recycling Units 26 | . . . 4 . 7 . 3 1 . . . . 3 . 4 . . . . 2 . 2 Tunnel 4 | . . . 4 . . . . . . . . . . . . . . . . . . . Fedlink 22 | . . . . . 7 . 3 1 . . . . 3 . 4 . . . . 2 . 2 Scanalyzers . | . . . . . . . . . . . . . . . . . . . . . . . Garrison Access 1 | . . . . . . . . . . . 1 . . . . . . . . . . . Reprogram 1 | . . . . . . . . . . . 1 . . . . . . . . . . . Data Cores Recovered 5 | . 1 . . . 1 . 1 1 . . 1 . . . . . . . . . . . Used 2 | . . . . . . . 1 1 . . . . . . . . . . . . . . Hacking Detections 79 | . 7 . 6 . 21 . 9 8 2 . 3 1 4 . 9 . 1 . . 6 . 2 Full Trace Events 7 | . . . . . 2 . 1 . . . 1 . . . 1 . . . . 2 . . Feedback Events . | . . . . . . . . . . . . . . . . . . . . . . . Feedback Blocked . | . . . . . . . . . . . . . . . . . . . . . . . Robot Schematics Acquired 1 | . . . . . . . . 1 . . . . . . . . . . . . . . Robots Built . | . . . . . . . . . . . . . . . . . . . . . . . Authchips . | . . . . . . . . . . . . . . . . . . . . . . . Time . | . . . . . . . . . . . . . . . . . . . . . . . Total Robot Build Rating . | . . . . . . . . . . . . . . . . . . . . . . . Part Schematics Acquired 16 | . . . . . 5 . 1 . . . . . 4 . 1 . . 4 . 1 . . Parts Built 4 | . . . . . . . . . . . . . . . 2 . . . . 2 . . Authchips 1 | . . . . . . . . . . . . . . . 1 . . . . . . . Time 116 | . . . . . . . . . . . . . . . 58 . . . . 58 . . Total Part Build Rating 28 | . . . . . . . . . . . . . . . 14 . . . . 14 . . Part Studies Acquired 14 | . . . . . 4 . 1 . . . . . 5 . . . . . . 4 . . Parts Repaired 3 | . 1 . . . 1 . . . . . . . . . 1 . . . . . . . Time 124 | . 26 . . . 70 . . . . . . . . . 28 . . . . . . . Parts Recycled . | . . . . . . . . . . . . . . . . . . . . . . . Recycled Matter . | . . . . . . . . . . . . . . . . . . . . . . . Retrieved Matter . | . . . . . . . . . . . . . . . . . . . . . . . Retrieved Components . | . . . . . . . . . . . . . . . . . . . . . . . Parts Scanalyzed 8 | . . . . . 4 . 1 . . . . . 3 . . . . . . . . . Part Schematics Acquired 7 | . . . . . 3 . 1 . . . . . 3 . . . . . . . . . Parts Damaged 1 | . . . . . 1 . . . . . . . . . . . . . . . . . Bothacking | -11 -10 -10 -8 -8 -6 -6 -6 -6 -6 -6 -6 -6 -5 -5 -5 -5 -5 -5 -4 -4 -4 -4 ------------ Run | Yrd Mat Sub Rec Scr Fac Was Fac Ext Cet Arc Hub Gar Fac Was Fac Upp Upp Zhi Pro Fac Gar Fac Used RIF Installer 2 | . . . . . . . . . . . . 1 . . . . . . . . 1 . Coupler Efficiency 1 | . . . . . . . . . . . . . . . . . . . . . 1 . Robots Hacked 24 | . . . . . 4 . 3 2 . 4 . . 2 . 8 . . . . 1 . . Non-combat 6 | . . . . . 1 . . . . 4 . . 1 . . . . . . . . . Combat . | . . . . . . . . . . . . . . . . . . . . . . . Robot Hacks Applied 6 | . . . . . 1 . . . . 4 . . 1 . . . . . . . . . find_chute 2 | . . . . . 1 . . . . . . . 1 . . . . . . . . . check_alert 4 | . . . . . . . . . . 4 . . . . . . . . . . . . Manual 18 | . . . . . 3 . 3 2 . . . . 1 . 8 . . . . 1 . . Relay Couplers Released 3 | . . . . . . . . . . . . 3 . . . . . . . . . . Machine Destruction 3 | . . . . . . . . . . . . 3 . . . . . . . . . . Fabnet Peak Effective % . | . . . . . . . . . . . . . . . . . . . . . . . Robots Rewired 11 | . . . . . . . . 11 . . . . . . . . . . . . . . Allies Hacked . | . . . . . . . . . . . . . . . . . . . . . . . Hacks Repelled . | . . . . . . . . . . . . . . . . . . . . . . . Allies | -11 -10 -10 -8 -8 -6 -6 -6 -6 -6 -6 -6 -6 -5 -5 -5 -5 -5 -5 -4 -4 -4 -4 -------- Run | Yrd Mat Sub Rec Scr Fac Was Fac Ext Cet Arc Hub Gar Fac Was Fac Upp Upp Zhi Pro Fac Gar Fac Total Allies 51 | . . . . . 2 19 . 19 6 . 2 . . . 1 2 . . . . . . Largest Group 19 | . . . . . 1 19 14 15 12 10 7 . . . 1 2 . . . . . . Highest-Rated Group 786 | . . . . . 26 702 577 587 786 775 486 . . . 10 50 . . . . . . Highest-Rated Ally 159 | . . . . . 26 50 50 159 159 159 110 . . . 10 25 . . . . . . Total Orders 11 | . . . . . . . . . 3 2 . . . . 1 . . . . 3 2 . STAY 1 | . . . . . . . . . . . . . . . 1 . . . . . . . ROAM 3 | . . . . . . . . . 1 1 . . . . . . . . . 1 . . FOLLOW 3 | . . . . . . . . . 2 1 . . . . . . . . . . . . EXPLORE 3 | . . . . . . . . . . . . . . . . . . . . 1 2 . RETURN 1 | . . . . . . . . . . . . . . . . . . . . 1 . . Ally Attacks 419 | . . . . . . 82 66 151 86 28 6 . . . . . . . . . . . Total Damage 12052 | . . . . . . 3244 2179 3648 1955 784 242 . . . . . . . . . . . Kills 69 | . . . . . . 10 16 24 13 4 2 . . . . . . . . . . . Allies Corrupted 1 | . . . . . . . 1 . . . . . . . . . . . . . . . Allies Melted . | . . . . . . . . . . . . . . . . . . . . . . . Intel | -11 -10 -10 -8 -8 -6 -6 -6 -6 -6 -6 -6 -6 -5 -5 -5 -5 -5 -5 -4 -4 -4 -4 ------- Run | Yrd Mat Sub Rec Scr Fac Was Fac Ext Cet Arc Hub Gar Fac Was Fac Upp Upp Zhi Pro Fac Gar Fac Active Infowar (turns) 7286 | 4 933 . . 1 470 181 580 825 459 578 52 135 404 . 685 1251 85 66 177 282 . 118 Optics 118 | . . . . . . . . . . . . . . . . . . . . . . 118 Sensors 5820 | . . . . . 470 181 580 825 459 578 52 28 302 . 539 1251 85 66 177 227 . . Structural 3128 | . . . . . 361 181 199 823 390 578 52 135 . . 354 . . . . 55 . . Seismic 664 | 4 660 . . . . . . . . . . . . . . . . . . . . . Machine Analysis 431 | . 273 . . . . . . . . . . . . . 158 . . . . . . . Cloaking 103 | . . . . . . . . . . . . . . . . . . . . . . 103 ECM 882 | . . . . 1 . . 381 . . . . 135 272 . 23 . . . . 55 . 15 Robot Analysis Total 8 | . 3 . . . . . 1 . . . . . . . . . . 4 . . . . Derelict Logs Recovered 8 | . . . . 3 . . . . . . . . . . . 2 2 . 1 . . . Drone Launches 5 | . . . . . . . . . . . . . . . . . . . . 2 3 . Drone Recoveries 3 | . . . . . . . . . . . . . . . . . . . . . 3 . Exploration | -11 -10 -10 -8 -8 -6 -6 -6 -6 -6 -6 -6 -6 -5 -5 -5 -5 -5 -5 -4 -4 -4 -4 ------------- Run | Yrd Mat Sub Rec Scr Fac Was Fac Ext Cet Arc Hub Gar Fac Was Fac Upp Upp Zhi Pro Fac Gar Fac Turns Passed 11915 | 62 1101 1604 656 1624 641 181 580 825 464 578 52 210 457 33 694 1251 85 71 177 352 81 136 Spaces Moved 14100 | 37 634 1340 386 990 1601 283 771 848 609 414 116 306 999 85 1658 476 259 166 587 981 184 370 Core 233 | 2 . . . . . . . . . 191 . 11 27 . . . . . . 2 . . Treads . | . . . . . . . . . . . . . . . . . . . . . . . Legs . | . . . . . . . . . . . . . . . . . . . . . . . Wheels 3194 | 35 634 1340 386 799 . . . . . . . . . . . . . . . . . . Hover . | . . . . . . . . . . . . . . . . . . . . . . . Flight 10673 | . . . . 191 1601 283 771 848 609 223 116 295 972 85 1658 476 259 166 587 979 184 370 Fastest Speed 12 | 50 90 90 107 32 21 20 23 23 20 23 23 22 32 37 12 20 24 19 19 15 32 28 Average Speed 52 | 97 109 104 123 160 27 20 23 23 22 127 23 27 34 37 30 23 24 23 20 19 32 30 Slowest Speed 250 | 100 115 120 125 200 32 22 23 23 63 250 23 50 50 37 37 24 24 92 21 50 32 32 Overloaded Moves 6 | . . . . . . . . . . . . . . . 6 . . . . . . . Propulsion Burnouts . | . . . . . . . . . . . . . . . . . . . . . . . Robots Hopped 121 | . . . . . 23 2 1 12 . . . 3 13 6 31 2 1 . 1 15 6 5 Potential Cave-ins . | . . . . . . . . . . . . . . . . . . . . . . . Cave-ins Triggered . | . . . . . . . . . . . . . . . . . . . . . . . Exploration Rate (%) 57 | 4 97 78 90 84 52 94 24 80 68 95 13 63 30 79 56 61 42 60 73 33 36 13 Regions Visited 22 Branch Regions 11 Pre-discovered Areas 17 | . 1 . 6 . 2 . 1 . . . . . . . 2 . 1 3 1 . . . Known Exits Taken 11 | . . . . . . . 1 1 1 1 1 . . . 1 1 1 1 1 1 . . Unknown Exits Taken 5 | 1 1 1 1 1 . . . . . . . . . . . . . . . . . . Scrap Searched 22 | . . 10 . 10 . . . . . . . . . . . 2 . . . . . . Spaces Dug 164 | . 11 6 . . 27 . 13 24 . . 3 13 12 . 24 . 2 . 8 19 . 2 Terrain Destroyed 237 | . 32 29 2 . 27 . 13 24 . . 3 13 12 . 24 . 2 . 8 46 . 2 Melee 150 | . . 5 . . 27 . 13 24 . . 3 13 12 . 24 . 2 . 8 19 . . Projectile 20 | . 8 8 2 . . . . . . . . . . . . . . . . . . 2 AOE 67 | . 24 16 . . . . . . . . . . . . . . . . . 27 . . Terrain Rammed . | . . . . . . . . . . . . . . . . . . . . . . . Walls Destroyed . | . . . . . . . . . . . . . . . . . . . . . . . Machines Disabled . | . . . . . . . . . . . . . . . . . . . . . . . Actions | -11 -10 -10 -8 -8 -6 -6 -6 -6 -6 -6 -6 -6 -5 -5 -5 -5 -5 -5 -4 -4 -4 -4 --------- Run | Yrd Mat Sub Rec Scr Fac Was Fac Ext Cet Arc Hub Gar Fac Was Fac Upp Upp Zhi Pro Fac Gar Fac Total 17805 | 51 856 1444 560 1029 1722 403 1150 1397 938 461 133 391 1062 79 1756 1610 274 193 627 1086 199 384 Wait 2844 | . 47 20 168 1 44 119 354 434 277 40 11 25 14 . 44 1128 13 6 34 49 14 2 Move 13862 | 36 633 1339 385 989 1560 279 768 825 608 413 116 299 974 75 1599 472 256 165 584 954 173 360 Hop 99 | . . . . . 18 1 1 10 . . . 3 12 3 27 1 1 . 1 12 4 5 Pick Up 88 | 4 21 4 . 18 3 . 1 . 14 . . . 8 . 7 1 . 3 . 3 . 1 Fast Attach 98 | 7 9 4 . 4 15 . . . 8 . . . 15 1 11 2 . 6 . 9 . 7 Attach 38 | . 7 1 . 4 3 . 1 . 2 . . 1 5 . 5 2 . . . 4 . 3 Detach 13 | . 1 . 2 1 2 . 1 . 1 . . 2 1 . . . . . . 1 . 1 Swap 69 | . 11 11 . 1 6 2 2 7 5 3 . 2 1 . 6 1 . 3 . 8 . . Drop 108 | . 13 5 2 11 11 2 2 . 21 1 . 3 8 . 9 3 . 8 . 7 1 1 Fire 178 | 4 112 40 3 . . . . 1 2 . . . . . 12 . . . . 1 . 3 Melee 276 | . 1 10 . . 45 . 20 63 . 4 6 26 24 . 35 . 4 2 8 27 . 1 Ram . | . . . . . . . . . . . . . . . . . . . . . . . Kick . | . . . . . . . . . . . . . . . . . . . . . . . Crush . | . . . . . . . . . . . . . . . . . . . . . . . Escape Stasis 52 | . . . . . 15 . . . . . . 30 . . . . . . . . 7 . Rewire . | . . . . . . . . . . . . . . . . . . . . . . . Trap 68 | . . . . . . . . 57 . . . . . . . . . . . 11 . . Miscellaneous 12 | . 1 10 . . . . . . . . . . . . 1 . . . . . . . Route ------- -11/Scrapyard -10/Materials (discovered 6 exits: [*Mat x3] / [*Min x2] / *Sub) -10/Subcaves (discovered 3 exits: *Mat x2 / *Rec) -8/Recycling (discovered 2 exits: *Fac / *Scr) -8/Scraptown (discovered 2 exits: *Fac x2) -6/Factory (discovered 8 exits: *Fac x4 / *Low x2 / *Ext x2) -6/Waste -6/Factory (discovered 5 exits: *Fac / Low x2 / *Ext x2) -6/Extension (discovered 2 exits: *Fac / *Cet) -6/Cetus (discovered 3 exits: *Fac x2 / *Arc) -6/Archives (discovered 3 exits: *Fac / *Hub x2) -6/Hub_04(d) (discovered 3 exits: *Fac x2 / Gar) -6/Garrison (discovered 3 exits: *Fac x3) -5/Factory (discovered 3 exits: *Fac x2 / *Upp) -5/Waste -5/Factory (discovered 4 exits: *Fac x3 / *Upp) -5/Upper Caves -5/Upper Caves (discovered 2 exits: *Fac / *Zhi) -5/Zhirov -4/Proximity Caves -4/Factory (discovered 3 exits: Res x2 / Gar) -4/Garrison -4/Factory (discovered 4 exits: Res x4) History --------- Turn | Location | Event 18 | -11/Scrapyard | Discovered new exit (range 16) 63 | -11/Scrapyard | Entered Materials 70 | -10/Materials | Discovered new exit (range 4) 178 | -10/Materials | Discovered new exit (range 16) 309 | -10/Materials | Build established: Mutant 422 | -10/Materials | Discovered new exit (range 9) 527 | -10/Materials | Repaired EM Pulse Gun 567 | -10/Materials | Discovered new exit (range 3) 599 | -10/Materials | Discovered new exit (range 3) 737 | -10/Materials | Core integrity fell below 50% 754 | -10/Materials | Lost 6 parts (1p2n1u2w) 863 | -10/Materials | Derelicts attacked the area 898 | -10/Materials | Central database locked down 953 | -10/Materials | Discovered new exit (range 8) 958 | -10/Materials | Learned 2 Storage zone layouts 980 | -10/Materials | Learned Storage trap positions 1005 | -10/Materials | Learned 4 Subcaves zone layouts 1164 | -10/Materials | Entered Subcaves 1165 | -10/Subcaves | Approached by a straggling Scientist 1165 | -10/Subcaves | Identified exit to Materials 1399 | -10/Subcaves | Disturbed a concealed Subdweller 1648 | -10/Subcaves | Shifting Twisted Machinery released Barrage Gun 1665 | -10/Subcaves | Shifting Twisted Machinery released Sub. Monowheel 1689 | -10/Subcaves | Build established: Subdweller-Mutant 2062 | -10/Subcaves | Visited Clippyterm 2065 | -10/Subcaves | Learned Research security intel 2065 | -10/Subcaves | Learned Research machine intel 2173 | -10/Subcaves | Discovered new exit (range 11) 2291 | -10/Subcaves | Core integrity fell below 20% 2328 | -10/Subcaves | A swath of the cavern ceiling suddenly collapsed 2768 | -10/Subcaves | Entered Recycling 3126 | -8/Recycling | Discovered new exit (range 9) 3127 | -8/Recycling | Learned location of Extension (-6) 3235 | -8/Recycling | Learned 12 Factory zone layouts 3239 | -8/Recycling | Scanned before Scraplab entrance 3254 | -8/Recycling | Entered Scraplab 3263 | -8/Recycling | Discovered new exit (range 2) 3326 | -8/Recycling | Learned Storage terminal intel 3356 | -8/Recycling | Learned Storage emergency access door positions 3424 | -8/Recycling | Entered Scraptown 3424 | -8/Scraptown | System corruption cleaned by C-Scrubber 3506 | -8/Scraptown | Scanned Subdweller tech in exchange for log data 3509 | -8/Scraptown | Learned 8 Research zone layouts 3510 | -8/Scraptown | Learned Factory security intel 3521 | -8/Scraptown | Discovered new exit (range 11) 3563 | -8/Scraptown | Build established: Mutant 4043 | -8/Scraptown | Visited UFD Registry 4043 | -8/Scraptown | Registered with UFD as "Rustsplitter" 4069 | -8/Scraptown | Visited Bundlers 4185 | -8/Scraptown | Visited Symbiants 4209 | -8/Scraptown | Visited Cyclists 4223 | -8/Scraptown | Entered Cyclist Reading Room 4291 | -8/Scraptown | Visited CR-KLE's Repair Center 4321 | -8/Scraptown | Visited Science Testing Area 4367 | -8/Scraptown | Visited Chapter 10 4395 | -8/Scraptown | Visited Supply Room 4439 | -8/Scraptown | Visited Botcube Research 4447 | -8/Scraptown | Found Botcube 4478 | -8/Scraptown | Visited Derelict Rescue Squad 4534 | -8/Scraptown | Delivered Scrap Shield to a Scientist 4690 | -8/Scraptown | Visited DA-N13 Charitable Foundation 4698 | -8/Scraptown | Found DCF Scrap (29 items) 4753 | -8/Scraptown | Visited Supply Room 4787 | -8/Scraptown | Visited Abandonware Association 4807 | -8/Scraptown | Learned abandonware demo "SHUTEYE.EXE" 4807 | -8/Scraptown | Learned abandonware demo "POISON.EXE" 4998 | -8/Scraptown | CR-KLE repaired 6 parts 5031 | -8/Scraptown | Met Optimus 5031 | -8/Scraptown | Accepted into 0bPrime 5047 | -8/Scraptown | Discovered new exit (range 3) 5048 | -8/Scraptown | Entered Factory 5048 | -6/Factory | Evolved 8 slots: Propulsion x4, Utility x4 5049 | -6/Factory | Identified exit to Lower Caves 5049 | -6/Factory | Identified exit to Extension 5050 | -6/Factory | Identified exit to Factory 5085 | -6/Factory | Loaded intel: 8 recycling unit locations 5276 | -6/Factory | Learned location of Protoforge (-3) 5277 | -6/Factory | Discovered exit to Factory (range 9) 5414 | -6/Factory | Repaired Broken Imp. Surge Thruster+? 5488 | -6/Factory | Discovered exit to Lower Caves (range 14) 5503 | -6/Factory | Central database locked down 5518 | -6/Factory | Learned location of Upper Caves (-4) 5554 | -6/Factory | Learned Extension stockpile data 5581 | -6/Factory | Loaded intel: 6 repair station locations 5602 | -6/Factory | Learned 4 Upper Caves zone layouts 5604 | -6/Factory | Learned Extension trap positions 5628 | -6/Factory | Learned location of 1 exit from Hub_04(d) 5655 | -6/Factory | Learned 4 Lower Caves zone layouts 5689 | -6/Factory | Sucked down chute 5689 | -6/Factory | Entered Waste 5692 | -6/Waste | Spotted C-40 Crusher 5698 | -6/Waste | Spotted C-40 Crusher 5698 | -6/Waste | Spotted C-40 Crusher 5698 | -6/Waste | Spotted C-40 Crusher 5703 | -6/Waste | Spotted C-40 Crusher 5708 | -6/Waste | Warlord forces began an assault 5709 | -6/Waste | Allies destroyed C-40 Crusher 5719 | -6/Waste | Build established: Scientist-Scout 5767 | -6/Waste | Allies destroyed C-40 Crusher 5769 | -6/Waste | Spotted C-40 Crusher 5775 | -6/Waste | Allies destroyed C-40 Crusher 5798 | -6/Waste | Lost 3 allies 5816 | -6/Waste | Allies destroyed C-40 Crusher 5828 | -6/Waste | Allies destroyed C-40 Crusher 5831 | -6/Waste | Discovered new exit (range 16) 5843 | -6/Waste | Identified exit to Factory 5870 | -6/Waste | Entered Factory 5870 | -6/Factory | Accompanied by 14 allies 5955 | -6/Factory | Discovered exit to Factory (range 5) 5978 | -6/Factory | Loaded intel: 8 recycling unit locations 6141 | -6/Factory | Learned 4 Extension zone layouts 6206 | -6/Factory | Learned 2 Lower Caves zone layouts 6262 | -6/Factory | Learned Extension interactive machine intel 6344 | -6/Factory | Learned Hub_04(d) trap positions 6375 | -6/Factory | Build established: Scientist-Sprinter 6404 | -6/Factory | Learned 4 Lower Caves zone layouts 6447 | -6/Factory | Learned Hub_04(d) interactive machine intel 6450 | -6/Factory | Entered Extension 6450 | -6/Extension | Accompanied by 3 allies 6451 | -6/Extension | Identified exit to Cetus 6452 | -6/Extension | Loaded intel: 21 trap records 6454 | -6/Extension | Loaded intel: 14 interactive machine locations 6527 | -6/Extension | Rescued a captive Derelict 6528 | -6/Extension | Rescued a captive Derelict 6536 | -6/Extension | Rescued A7 6546 | -6/Extension | Attached CPS modules to A7. 6578 | -6/Extension | Rescued a captive Derelict 6605 | -6/Extension | Loaded intel: 1 recycling unit location 6864 | -6/Extension | Build established: Commander-Scout 6935 | -6/Extension | Spotted B-75 Beast 6952 | -6/Extension | Allies destroyed B-75 Beast 6954 | -6/Extension | Spotted B-75 Beast 6971 | -6/Extension | Allies destroyed B-75 Beast 6984 | -6/Extension | Lost 5 allies 6987 | -6/Extension | Rescued a captive Derelict 7090 | -6/Extension | Rescued a captive Derelict 7098 | -6/Extension | Rescued a captive Derelict 7106 | -6/Extension | Rescued a captive Derelict 7150 | -6/Extension | First assault squad dispatched 7249 | -6/Extension | Lost 3 allies 7275 | -6/Extension | Entered Cetus 7275 | -6/Cetus | Accompanied by 12 allies (A7) 7280 | -6/Cetus | Acquired a Cetus Manufacturing Module code from A7 7298 | -6/Cetus | Spotted Cetus Guard 7298 | -6/Cetus | Spotted Cetus Guard 7298 | -6/Cetus | Spotted Cetus Guard 7298 | -6/Cetus | Spotted Cetus Guard 7299 | -6/Cetus | Attached CPS modules to Cetus Guard. 7319 | -6/Cetus | Allies destroyed Cetus Guard 7326 | -6/Cetus | Allies destroyed Cetus Guard 7348 | -6/Cetus | Lost 6 allies 7401 | -6/Cetus | Started Cetus Manufacturing Module 7411 | -6/Cetus | Discovered exit to Factory (range 15) 7426 | -6/Cetus | Manufactured an Enhanced Grunt 7451 | -6/Cetus | Manufactured an Enhanced Grunt 7476 | -6/Cetus | Manufactured an Enhanced Grunt 7501 | -6/Cetus | Manufactured an Enhanced Grunt 7526 | -6/Cetus | Manufactured an Enhanced Grunt 7532 | -6/Cetus | Discovered new exit (range 15) 7566 | -6/Cetus | Spotted Cetus Guard 7568 | -6/Cetus | Spotted Cetus Guard 7569 | -6/Cetus | Spotted Cetus Guard 7574 | -6/Cetus | Allies destroyed Cetus Guard 7576 | -6/Cetus | Allies destroyed Cetus Guard 7579 | -6/Cetus | Allies destroyed Cetus Guard 7588 | -6/Cetus | Found Prototype Device 7588 | -6/Cetus | Identified Exp. Thermal Shield 7593 | -6/Cetus | Discovered exit to Factory (range 16) 7595 | -6/Cetus | Met Revision 17 7624 | -6/Cetus | Botcube activated 7646 | -6/Cetus | Botcube completed mutation into treaded form, armed with 2 guns. 7671 | -6/Cetus | Identified exit to Archives 7739 | -6/Cetus | Entered Archives 7739 | -6/Archives | Accompanied by 10 allies (A7) 7771 | -6/Archives | Unable to access archive contents 7792 | -6/Archives | Discovered exit to Factory (range 16) 7794 | -6/Archives | Discovered new exit (range 16) 7800 | -6/Archives | Discovered new exit (range 16) 7818 | -6/Archives | Identified exit to Hub_04(d) 8113 | -6/Archives | Build established: Scientist-Assassin 8317 | -6/Archives | Entered Hub_04(d) 8317 | -6/Hub_04(d) | Accompanied by 7 allies 8319 | -6/Hub_04(d) | Loaded intel: 27 trap records 8320 | -6/Hub_04(d) | Loaded intel: 18 interactive machine locations 8346 | -6/Hub_04(d) | Discovered exit to Factory (range 16) 8363 | -6/Hub_04(d) | Identified exit to Garrison 8365 | -6/Hub_04(d) | Network Hub disabled 8365 | -6/Hub_04(d) | Network Hub disabled 8366 | -6/Hub_04(d) | Spotted Lightning 8366 | -6/Hub_04(d) | Spotted Lightning 8366 | -6/Hub_04(d) | Spotted Lightning 8369 | -6/Hub_04(d) | Entered Garrison 8429 | -6/Garrison | Triggered checkpoint 8429 | -6/Garrison | Spotted B-75 Beast 8453 | -6/Garrison | Discovered exit to Factory (range 10) 8463 | -6/Garrison | Triggered checkpoint 8469 | -6/Garrison | Garrison Relay disabled 8476 | -6/Garrison | Discovered exit to Factory (range 34) 8476 | -6/Garrison | Discovered exit to Factory (range 24) 8476 | -6/Garrison | Discovered exit to Factory (range 64) 8531 | -6/Garrison | Lost 4 parts (3n1w) 8541 | -6/Garrison | Triggered checkpoint 8558 | -6/Garrison | Installed Relay Interface Framework 8561 | -6/Garrison | Triggered checkpoint 8579 | -6/Garrison | Entered Factory 8579 | -5/Factory | Evolved 2 slots: Power x1, Propulsion x1 8580 | -5/Factory | Identified exit to Upper Caves 8648 | -5/Factory | Loaded intel: 8 recycling unit locations 8702 | -5/Factory | Discovered new exit (range 13) 8713 | -5/Factory | Identified exit to Factory 8879 | -5/Factory | Search patrols dispatched 8908 | -5/Factory | Discovered exit to Factory (range 3) 8997 | -5/Factory | Lost 4 parts (1p2n1u) 9035 | -5/Factory | Spotted B-75 Beast 9036 | -5/Factory | Sucked down chute 9036 | -5/Factory | Entered Waste 9045 | -5/Waste | Spotted C-40 Crusher 9048 | -5/Waste | Spotted C-40 Crusher 9051 | -5/Waste | EMP discharged 9057 | -5/Waste | Spotted C-40 Crusher 9058 | -5/Waste | Spotted C-40 Crusher 9061 | -5/Waste | Spotted C-40 Crusher 9064 | -5/Waste | Discovered new exit (range 14) 9064 | -5/Waste | Spotted C-40 Crusher 9069 | -5/Waste | Identified exit to Factory 9069 | -5/Waste | Entered Factory 9100 | -5/Factory | Repaired Nuclear Pulse Array+ 9128 | -5/Factory | Discovered exit to Factory (range 16) 9192 | -5/Factory | Noticed UFD Elites at a Recycling Unit 9215 | -5/Factory | Build established: Mutant 9218 | -5/Factory | Loaded intel: 8 recycling unit locations 9264 | -5/Factory | Discovered exit to Factory (range 16) 9366 | -5/Factory | Fabricated Adv. Surge Thruster (x2) 9386 | -5/Factory | Learned location of 1 exit from Extension 9444 | -5/Factory | Learned Testing emergency access door positions 9461 | -5/Factory | Discovered exit to Upper Caves (range 12) 9492 | -5/Factory | Learned Quarantine interactive machine intel 9531 | -5/Factory | Learned location of Upper Caves (-4) 9560 | -5/Factory | Learned Quarantine trap positions 9606 | -5/Factory | Unchained authorized (6S-H0T) 9651 | -5/Factory | Learned 8 Research zone layouts 9668 | -5/Factory | Spotted B-75 Beast 9702 | -5/Factory | Learned Extension emergency access door positions 9737 | -5/Factory | Build established: Hacker-Scout 9763 | -5/Factory | Entered Upper Caves 9765 | -5/Upper Caves | UFD Scientist delivered a prototype 9766 | -5/Upper Caves | Found Prototype Protection 9766 | -5/Upper Caves | Identified Enh. Scrap Shield 9783 | -5/Upper Caves | A Commander dispatched an escort 9784 | -5/Upper Caves | Entered an active Warlord outpost 9786 | -5/Upper Caves | Learned location of 1 exit from Research 9786 | -5/Upper Caves | Learned Factory security intel 9786 | -5/Upper Caves | Learned Research garrison access intel 10071 | -5/Upper Caves | Build established: Sprinter 10788 | -5/Upper Caves | Learned location of 1 exit from Proximity Caves 10935 | -5/Upper Caves | Learned location of 1 exit from Proximity Caves 10964 | -5/Upper Caves | Attracted the attention of an 0b10 checkpoint 11011 | -5/Upper Caves | Discovered new exit (range 12) 11014 | -5/Upper Caves | Identified exit to Upper Caves 11014 | -5/Upper Caves | Entered another Upper Caves area 11014 | -5/Upper Caves | Discovered exit to Factory (range 9) 11019 | -5/Upper Caves | Learned Factory terminal intel 11049 | -5/Upper Caves | Learned location of Armory (-3) 11083 | -5/Upper Caves | Discovered new exit (range 9) 11084 | -5/Upper Caves | Identified exit to Zhirov 11094 | -5/Upper Caves | Attracted the attention of an 0b10 base 11096 | -5/Upper Caves | Learned Research emergency access door positions 11096 | -5/Upper Caves | Learned location of 1 exit from Factory 11099 | -5/Upper Caves | Entered Zhirov 11099 | -5/Zhirov | Discovered new exit (range 3) 11100 | -5/Zhirov | Identified exit to Proximity Caves 11104 | -5/Zhirov | Met Zhirov 11109 | -5/Zhirov | Learned location of Quarantine (-3) 11109 | -5/Zhirov | Learned location of Testing (-2) 11109 | -5/Zhirov | Learned location of Command (-1) 11111 | -5/Zhirov | Zhirov requested help retrieving the SGEMP Prototype 11114 | -5/Zhirov | Found Alien Artifact 11114 | -5/Zhirov | Identified Integrated Reactor 11114 | -5/Zhirov | Installed Integrated Reactor, increased core energy generation (+10) 11120 | -5/Zhirov | Found Alien Artifact 11170 | -5/Zhirov | Entered Proximity Caves 11308 | -4/Proximity Caves | Attracted the attention of an 0b10 checkpoint 11347 | -4/Proximity Caves | Entered Factory 11347 | -4/Factory | Evolved 2 slots: Propulsion x1, Utility x1 11348 | -4/Factory | Identified exit to Research 11351 | -4/Factory | Loaded intel: 26 terminal locations 11457 | -4/Factory | Loaded intel: 8 recycling unit locations 11495 | -4/Factory | Fabricated Lgt. Antimatter Reactor? 11527 | -4/Factory | Unchained authorized (6S-H0T) 11594 | -4/Factory | Identified Transdimensional Reconstructor 11643 | -4/Factory | Core integrity fell below 50% 11651 | -4/Factory | Core integrity fell below 20% 11670 | -4/Factory | Lost 13 parts (2p6n3u2w) 11685 | -4/Factory | Noticed a derelict Sapper rigging charges 11694 | -4/Factory | Identified exit to Garrison 11699 | -4/Factory | Entered Garrison 11699 | -4/Garrison | Accompanied by 2 allies 11715 | -4/Garrison | Triggered checkpoint 11745 | -4/Garrison | Spotted B-86 Titan 11762 | -4/Garrison | Discovered new exit (range 8) 11765 | -4/Garrison | Triggered checkpoint 11770 | -4/Garrison | Expanded RIF knowledge: Coupler Efficiency 11779 | -4/Garrison | Identified exit to Factory 11780 | -4/Garrison | Entered Factory 11861 | -4/Factory | Loaded intel: 8 recycling unit locations 11915 | -4/Factory | Spotted B-86 Titan 11916 | -4/Factory | Destroyed by B-86 Titan with Railgun Last Messages --------------- UFD!RESOURCES<101> 0bP!READINESS UFD!SANITIZING UFD!... 11866_ ALERT: Suspicious activity at Recycling Unit F006. Dispatching Investigation squad. 11867_ Acquired Impulse Thruster+. 11870_ ALERT: All DSF locations entering lockdown mode. 11893_ ALERT: Suspicious intruders detected, dispatching Cutter reinforcements to area. 11901_ Detecting nearby Garrison Access. 11903_ O-24 Administrator: "IFF HANDSHAKE FAILED. SECURING TERMINAL." 11908_ ALERT: Hostiles spotted, dispatching reinforcements to Terminal F011. 11913_ ALERT: Potential suspicious activity detected, Programmers report to Factory Zone 5E. 11916_ Penetrated by Slug. Map ----- +----------------------------------------------------+ | ?????????????????????????????????????????????????? | | ?????????????????????????????????????????????????? | | ?????????????????????????????????????????????????? | | ?????????????????????????????????????????????????? | | ?????????????????????????????????????????????????? | | ?????????????????????????????????????????????????? | | ?????????????????????????????????????????????????? | | ???????????????????????? ??????????????????????? | | ??????????????????????? ??????????? ?????????? | | ???????????????????????? ????????? ??????????? | | ??????????????????"" ?? ???????? ???????????? | | ?????????????????""" ????? #???????????? | | ????????????????? "??? #???????????? | | ??????????????????! """" ????????????? | | ??????????????????? """" ?????????????? | | ??????????????????? ??????????????? | | ???????????????????? """" #??????????????? | | ????????????????????? """" #??????????????? | | ?????????????????????# """" #??????????????? | | ?????????????????????# #??????????????? | | ?????????????????????# """ ###????????????? | | ?????????????????????# "Y BB#????????????? | | ?????????????????????# """ BB#????????????? | | ?????????????????????# w #??????????????? | | ?????????????????????# #??????????????? | | ???????????????##########@;## #??????????????? | | ???????????????# ; ?? #??????????????? | | ???????????????# """"""" # #??????????????? | | ???????????????# """"""" #?? +??????????????? | | ???????????????# """"""" #???? #??????????????? | | ???????????????# """"""" #????????????????????? | | ???????????????# #????????????????????? | | ???????????????# """"""" #????????????????????? | | ???????????????#] """"""" #????????????????????? | | ???????????????# """"""" #????????????????????? | | ???????????????# """"""" #????????????????????? | | ???????????????# #????????????????????? | | ???????????????# #????????????????????? | | ????????#################+###????????????????????? | | ????????# #??# #????????????????"Y"???? | | ????????# ![ #??# #????????????????"""???? | | ????????# ! [[ #### #??????????????????????? | | ????????# [ " #??????????????????????? | | ????????# ######??????????????????????? | | ###############+######???????????????????????????? | | # #???????????????????????????????? | | # #???????????????????????????????? | | """""""" + ###########?????????????????????? | | # # #?????????????????????? | | """""""" """# # !! #?????????????????????? | +----------------------------------------------------+ Best States ------------- Heat Dissipation 74 Energy Generation 64 Energy Capacity 360 Matter Stores 300 Matter Capacity 300 Sight Range 22 Robot Scan Range 16 Terrain Scan Density 10 ECM Strength 2 Cloak Strength 2 Corruption Block 1 Armor Coverage 800 Resistance: TH 30 Resistance: EX 50 Propulsion Shielding 66 Evasion (%) 67 Offensive Hacking 24 Defensive Hacking 20 Authchip Count 1 Item Schematics ----------------- Imp. Surge Thruster | -6/Factory | Scanalyzed Multitool | -6/Factory | Scanalyzed Imp. Thermal Shield | -6/Factory | Hacked Lgt. Antimatter Reactor | -6/Factory | Hacked ECM Suite | -6/Factory | Scanalyzed Adv. Surge Thruster | -6/Factory | Scanalyzed Adv. System Restoration Module | -5/Factory | Scanalyzed Adv. Energy Well | -5/Factory | Scanalyzed Nuclear Pulse Array | -5/Factory | Scanalyzed Adv. Cryofiber Web | -5/Factory | Hacked Lrn. Sensor Array | -5/Factory | Hacked Assault Drone Bay | -5/Zhirov | Free Exp. Heat Sink | -5/Zhirov | Free Exp. Optical Array | -5/Zhirov | Free Imp. Arc Thrower | -5/Zhirov | Free Adv. Cloaking Device | -4/Factory | Downloaded Robot Schematics ------------------ E-15 Imp | -6/Extension | Hacked Fabricated ------------ Adv. Surge Thruster | x2 | -5/Factory | Authchip Lgt. Antimatter Reactor | x2 | -4/Factory Repaired ---------- EM Pulse Gun | 13% | -10/Materials Imp. Surge Thruster | 99% | -6/Factory | Broken Nuclear Pulse Array | 5% | -5/Factory Studied --------- Cesium-ion Thruster | -6/Factory | Hacked Imp. Surge Thruster | -6/Factory | Hacked Lgt. Fission Core | -6/Factory | Hacked Power Sword | -6/Factory | Hacked Nuclear Pulse Thruster | -6/Factory | Hacked Nuclear Pulse Array | -5/Factory | Hacked Field Propulsion Drive | -5/Factory | Hacked Lgt. Ion Engine | -5/Factory | Hacked Imp. Datajack | -5/Factory | Hacked Remote Datajack | -5/Factory | Hacked Lgt. Antimatter Reactor | -4/Factory | Hacked Impulse Thruster | -4/Factory | Hacked Imp. Fusion Compressor | -4/Factory | Hacked Adv. Datajack | -4/Factory | Hacked Alien Tech Used ----------------- Integrated Reactor Achievements -------------- Survival Of The Most Covered Challenges ------------ None Game ------ Seed MeleeTransmissionConstruct Manual? 0 Play Time 03:03:02 Cumulative 704.8 hours Start 2025.11.26 @ 10:39:03 End 2025.11.26 @ 14:27:54 Sessions 1 Manual Loads 0 Difficulty Rogue Special Mode None Game No. 303 Rogue 303 Adventurer 0 Explorer 0 Win Type - Total 72 Types 38/4/11/5/6/1/1/3/0/3 Lore% 97 Gallery% 89 Achievement% 80 Wizard Run 0 Options --------- Layout 1 ASCII 0 Keyboard 0 Movement Numpad Keybinds 0 Fullscreen 1 Font 24/Smallcaps Map View 50x35 Zoom Use 0% Tactical HUD 1 Map Filters NONE Filters NONE Steam 1 RUN: 34a6bd6d-637a-49ed-be3e-28aa11675dd3